bitfinex/quotes_SOLUSD_20240712
["timestamp","ask_amount","ask_price","bid_price","bid_amount"]
[1720763815865,4.46414294,135.85,135.84,14.62]
[1720763819027,7.3596,135.88,135.84,14.62]
[1720763819534,4.46414218,135.87,135.84,14.62]
[1720763819743,7.3596,135.88,135.85,14.62]
[1720763819932,4.46418629,135.87,135.85,14.62]
[1720763820134,7.3593,135.89,135.85,14.62]
[1720763820333,16.44026471,135.88,135.85,14.62]
[1720763820557,4.46437722,135.87,135.85,14.62]
[1720763820751,7.3593,135.89,135.85,14.62]
[1720763820946,16.44027253,135.88,135.85,14.62]
[1720763821150,4.46437934,135.87,135.85,14.62]
[1720763821353,7.3593,135.89,135.85,14.62]
[1720763821536,16.43989779,135.88,135.85,14.62]
[1720763821878,4.46434092,135.87,135.85,14.62]
[1720763822166,7.3585,135.9,135.85,14.62]
[1720763822468,36.44226372,135.89,135.85,14.62]
[1720763822657,4.46484865,135.88,135.86,14.62]
[1720763822855,4.46484865,135.87,135.86,14.62]
[1720763823366,7.69930026,135.91,135.86,29.24]
[1720763823573,23.3972,135.95,135.9,14.62]
[1720763823574,16.0415,135.95,135.9,14.62]
[1720763823880,23.81158868,135.94,135.91,14.62]
[1720763824040,16.45538868,135.93,135.91,14.62]
[1720763824240,4.46548028,135.92,135.91,14.62]
[1720763824435,4.46548028,135.93,135.91,14.62]
[1720763824664,4.46548028,135.92,135.91,14.62]
[1720763825066,4.46465865,135.92,135.91,14.62]
[1720763825452,7.3562,135.94,135.91,14.62]
[1720763825648,4.46428115,135.93,135.91,14.62]
[1720763825862,7.3562,135.94,135.91,14.62]
[1720763826068,20.0,135.93,135.91,14.62]
[1720763828452,31.81376914,135.97,135.92,14.62]
[1720763828654,4.46527263,135.96,135.92,14.62]
[1720763828974,4.46527263,135.96,135.93,14.62]
[1720763828975,4.46527263,135.95,135.93,14.62]
[1720763829352,7.3551,135.96,135.93,14.62]
[1720763829947,7.3551,135.96,135.92,14.62]
[1720763830370,7.3556,135.95,135.87,59.95113795]
[1720763830594,7.3562,135.94,135.9,14.62]
[1720763831072,21.9756,135.95,135.89,14.62]
[1720763832151,34.62,135.94,135.86,6.4771]
[1720763832366,34.62,135.94,135.89,14.62]
[1720763832558,20.0,135.94,135.9,14.62]
[1720763832764,21.9752,135.96,135.91,14.62]
[1720763832947,20.0,135.95,135.91,14.62]
[1720763833958,20.0,135.95,135.87,14.62]
[1720763834280,20.0,135.95,135.92,14.62]
[1720763835063,20.0,135.95,135.91,14.62]
[1720763838176,20.0,135.96,135.92,14.62]
[1720763838576,7.69906095,135.99,135.94,14.62]
[1720763838779,20.7762,136.0,135.94,14.62]
[1720763838964,21.9735,135.99,135.94,14.62]
[1720763839855,20.0,135.98,135.94,14.62]
[1720763844157,20.0,135.98,135.93,14.62]
[1720763844585,20.0,135.98,135.94,14.62]
[1720763849289,41.9742,135.98,135.9,15.8823]
[1720763849495,41.9742,135.98,135.93,14.62]
[1720763851373,41.9742,135.98,135.91,1.47127949]
[1720763851683,41.9742,135.98,135.93,14.62]
[1720763851883,27.3542,135.98,135.93,14.62]
[1720763852189,41.9742,135.98,135.93,14.62]
[1720763852584,34.62,135.98,135.93,14.62]
[1720763852791,20.0,135.98,135.93,14.62]
[1720763853865,20.0,135.98,135.95,14.62]
[1720763854087,20.0,135.99,135.95,14.62]
[1720763855194,20.0,135.99,135.96,14.62]
[1720763855389,19.17074837,136.01,135.97,14.62]
[1720763855697,21.9716,136.03,135.98,14.62]
[1720763856500,7.3525,136.01,135.97,14.62]
[1720763857069,21.9725,136.01,135.96,14.62]
[1720763857998,14.62,135.99,135.91,6.0936]
[1720763858293,34.62,135.98,135.9,15.8823]
[1720763858498,14.62,135.97,135.92,14.62]
[1720763859271,34.62,135.98,135.93,14.62]
[1720763861288,34.62,135.98,135.92,14.62]
[1720763862014,21.9748,135.97,135.9,16.99402925]
[1720763862182,21.9748,135.97,135.92,14.62]
[1720763862183,14.62,135.97,135.92,14.62]
[1720763864994,34.62,135.98,135.92,14.62]
[1720763865879,14.62,135.97,135.92,14.62]
[1720763866904,34.62,135.98,135.92,14.62]
[1720763867692,14.62,135.97,135.92,14.62]
[1720763868582,14.62,135.94,135.87,15.7771]
[1720763868786,14.62,135.94,135.88,14.62]
[1720763868995,22.7545,135.94,135.84,22.0747]
[1720763869190,14.62,135.93,135.87,14.62]
[1720763869597,14.62,135.92,135.87,14.62]
[1720763869802,14.62,135.93,135.87,14.62]
[1720763870104,14.62,135.93,135.88,14.62]
[1720763870305,37.3745,135.94,135.88,14.62]
[1720763870684,14.62,135.94,135.89,14.62]
[1720763870882,14.62,135.95,135.89,14.62]
[1720763871081,20.0,135.94,135.89,14.62]
[1720763871314,20.0,135.94,135.87,14.62]
[1720763871605,34.62,135.96,135.91,14.62]
[1720763871808,14.62,135.95,135.9,14.62]
[1720763873608,14.62,135.94,135.85,1.362455]
[1720763873783,14.62,135.94,135.89,14.62]
[1720763876699,14.62,135.95,135.89,14.62]
[1720763877588,20.0,135.96,135.9,14.62]
[1720763877911,14.62,135.95,135.9,14.62]
[1720763878796,14.62,135.95,135.89,14.62]
[1720763878997,14.62,135.94,135.89,14.62]
[1720763880288,14.62,135.93,135.84,22.0747]
[1720763880491,14.62,135.92,135.87,14.62]
[1720763880911,14.62,135.93,135.88,14.62]
[1720763881114,27.3551,135.96,135.89,14.62]
[1720763881319,14.62,135.94,135.89,14.62]
[1720763881491,14.62,135.95,135.89,14.62]
[1720763881692,34.62,135.94,135.89,14.62]
[1720763881896,14.62,135.94,135.89,14.62]
[1720763882240,23.46613793,135.97,135.89,14.62]
[1720763882403,4.46596444,135.96,135.92,14.62]
[1720763882732,30.3865,135.97,135.92,14.62]
[1720763882926,4.46618042,135.96,135.92,14.62]
[1720763883099,37.7411,135.97,135.91,14.62]
[1720763883424,14.62,135.95,135.89,16.0883212]
[1720763883630,4.46592571,135.94,135.9,16.09148894]
[1720763883933,14.62,135.95,135.9,14.62]
[1720763884104,4.46559458,135.94,135.9,14.62]
[1720763884306,14.62,135.95,135.9,14.62]
[1720763884616,4.46567277,135.94,135.9,14.62]
[1720763884813,27.3552,135.96,135.9,14.62]
[1720763885041,19.08571989,135.95,135.9,14.62]
[1720763885212,4.46571989,135.94,135.9,14.62]
[1720763885531,14.62,135.95,135.9,14.62]
[1720763885715,4.46590382,135.94,135.9,14.62]
[1720763885912,14.62,135.95,135.9,14.62]
[1720763886115,4.46571768,135.94,135.9,14.62]
[1720763886318,14.62,135.95,135.9,14.62]
[1720763886530,4.46575056,135.94,135.9,14.62]
[1720763886836,14.62,135.95,135.9,14.62]
[1720763887004,39.08610027,135.94,135.88,15.3149]
[1720763887330,34.62,135.94,135.89,14.62]
[1720763887527,14.62,135.93,135.88,29.9349]
[1720763887731,20.0,135.94,135.89,14.62]
[1720763888630,14.62,135.97,135.91,14.62]
[1720763888820,14.62,135.97,135.92,14.62]
[1720763889034,4.46626237,135.96,135.92,14.62]
[1720763889217,4.46626237,135.95,135.92,14.62]
[1720763889545,14.62,135.97,135.92,14.62]
[1720763889831,19.08612275,135.96,135.91,14.62]
[1720763890021,4.46612275,135.95,135.91,14.62]
[1720763890228,14.62,135.96,135.91,14.62]
[1720763890412,4.46577881,135.95,135.91,14.62]
[1720763890622,14.62,135.97,135.91,14.62]
[1720763890940,39.08576155,135.96,135.91,14.62]
[1720763891113,4.46576155,135.95,135.91,14.62]
[1720763891430,34.62,135.96,135.91,14.62]
[1720763891602,4.46600731,135.95,135.91,14.62]
[1720763891807,14.62,135.96,135.91,14.62]
[1720763892024,4.46606201,135.95,135.91,14.62]
[1720763892433,14.62,135.96,135.91,14.62]
[1720763892738,4.46610832,135.95,135.91,14.62]
[1720763892923,4.46610832,135.95,135.93,14.62]
[1720763893239,20.0,135.97,135.93,14.62]
[1720763895504,4.46609259,135.96,135.93,14.62]
[1720763895707,20.0,135.97,135.92,14.62]
[1720763895904,4.46627647,135.96,135.92,14.62]
[1720763896219,20.0,135.97,135.93,14.62]
[1720763896531,4.46627622,135.96,135.93,14.62]
[1720763896841,34.62,135.97,135.89,6.4931]
[1720763897029,4.4659962,135.96,135.91,14.62]
[1720763897215,4.4659962,135.95,135.91,14.62]
[1720763897416,21.9754,135.96,135.91,14.62]
[1720763897621,4.4658443,135.95,135.91,14.62]
[1720763897821,21.9754,135.96,135.91,14.62]
[1720763898137,4.46555645,135.95,135.91,14.62]
[1720763898303,21.9754,135.96,135.91,14.62]
[1720763898509,4.46532532,135.95,135.91,14.62]
[1720763898724,21.9754,135.96,135.91,14.62]
[1720763899029,4.46534116,135.95,135.91,14.62]
[1720763899230,21.9754,135.96,135.91,14.62]
[1720763899529,4.46553356,135.95,135.91,14.62]
[1720763899729,14.62,135.96,135.91,14.62]
[1720763899915,4.46553356,135.95,135.9,14.62]
[1720763900237,4.46405434,135.94,135.9,14.62]
[1720763900556,21.9752,135.96,135.9,14.62]
[1720763900708,4.46368104,135.95,135.91,14.62]
[1720763900913,21.9752,135.96,135.91,14.62]
[1720763901113,4.46392306,135.95,135.91,14.62]
[1720763901340,21.9752,135.96,135.91,14.62]
[1720763901522,4.4637408,135.95,135.91,14.62]
[1720763901723,49.67503393,135.97,135.91,14.62]
[1720763902037,19.08385886,135.96,135.91,14.62]
[1720763902210,21.9751,135.96,135.91,14.62]
[1720763902408,4.46390053,135.95,135.88,15.3149]
[1720763902617,21.9751,135.96,135.9,14.62]
[1720763902618,4.46429956,135.94,135.9,14.62]
[1720763902941,34.62,135.95,135.9,14.62]
[1720763903159,4.46473705,135.94,135.9,14.62]
[1720763903323,34.62,135.95,135.9,14.62]
[1720763903524,4.46467665,135.94,135.9,14.62]
[1720763903730,34.62,135.95,135.9,14.62]
[1720763903933,4.46504674,135.94,135.9,14.62]
[1720763904238,34.62,135.95,135.9,14.62]
[1720763904443,4.46573758,135.94,135.9,14.62]
[1720763904646,34.62,135.95,135.9,14.62]
[1720763904849,4.46573758,135.94,135.88,15.3149]
[1720763905053,34.62,135.95,135.9,14.62]
[1720763905237,4.46579637,135.94,135.9,14.62]
[1720763905439,34.62,135.95,135.9,14.62]
[1720763905748,4.46581094,135.94,135.9,14.62]
[1720763906053,20.0,135.95,135.91,14.62]
[1720763906255,20.0,135.96,135.91,14.62]
[1720763906427,4.46598139,135.95,135.91,14.62]
[1720763906629,7.69928402,135.98,135.93,14.62]
[1720763906858,16.47971192,135.97,135.93,14.62]
[1720763907048,4.46653447,135.96,135.94,14.62]
[1720763907356,4.46653447,135.95,135.94,14.62]
[1720763907652,4.46653447,135.95,135.93,14.62]
[1720763907862,21.974,135.98,135.93,14.62]
[1720763908032,16.47992618,135.97,135.93,14.62]
[1720763908227,4.46657583,135.96,135.93,14.62]
[1720763908547,4.46657583,135.95,135.94,14.62]
[1720763909058,4.46651373,135.95,135.94,14.62]
[1720763909264,4.46651258,135.95,135.94,14.62]
[1720763909648,20.0,135.98,135.94,16.08946316]
[1720763909837,4.46661901,135.97,135.95,14.62]
[1720763910028,4.46661901,135.96,135.95,14.62]
[1720763910670,7.3531,136.0,135.95,14.62]
[1720763910836,16.49045781,135.99,135.96,14.62]
[1720763911042,4.46696852,135.98,135.96,14.62]
[1720763911350,4.46696852,135.98,135.93,16.2652]
[1720763911351,4.46696852,135.97,135.93,16.2652]
[1720763911537,4.46668398,135.96,135.93,16.2652]
[1720763911722,4.46624564,135.95,135.92,14.62]
[1720763911929,7.3543,135.98,135.92,14.62]
[1720763912260,36.48198117,135.97,135.93,14.62]
[1720763912556,4.46652063,135.96,135.91,14.62]
[1720763912764,4.46633566,135.95,135.9,15.499]
[1720763912939,4.46596524,135.94,135.9,30.119]
[1720763913258,21.9752,135.96,135.9,30.119]
[1720763913437,4.46628716,135.95,135.9,30.119]
[1720763913637,4.46628716,135.94,135.9,30.119]
[1720763913938,21.9752,135.96,135.91,14.62]
[1720763914253,4.4662183,135.95,135.91,14.62]
[1720763914560,4.4662183,135.94,135.91,14.62]
[1720763914747,4.4662183,135.95,135.91,14.62]
[1720763915755,7.3562,135.94,135.9,15.499]
[1720763915963,21.9757,135.95,135.9,30.119]
[1720763916259,4.46763971,135.94,135.9,30.119]
[1720763916431,14.62,135.95,135.9,30.119]
[1720763916634,4.46723971,135.94,135.9,30.119]
[1720763916860,14.62,135.95,135.9,30.119]
[1720763917058,4.46743185,135.94,135.9,30.119]
[1720763917243,21.9751,135.96,135.9,30.119]
[1720763917244,20.0,135.95,135.9,30.119]
[1720763917436,4.46742247,135.94,135.9,30.119]
[1720763917735,20.0,135.95,135.9,30.119]
[1720763917953,4.46743403,135.94,135.91,14.62]
[1720763918161,20.0,135.95,135.91,14.62]
[1720763918350,4.46743414,135.94,135.91,14.62]
[1720763918556,20.0,135.95,135.91,14.62]
[1720763918938,4.46770206,135.94,135.9,30.119]
[1720763919256,20.0,135.95,135.9,30.119]
[1720763919462,4.46768917,135.94,135.9,15.499]
[1720763919664,34.62,135.95,135.9,30.119]
[1720763919852,4.46643042,135.94,135.9,30.119]
[1720763920043,34.62,135.95,135.9,30.119]
[1720763920240,4.46601018,135.94,135.9,30.119]
[1720763920462,34.62,135.95,135.9,30.119]
[1720763920644,4.46579895,135.94,135.9,30.119]
[1720763920850,34.62,135.95,135.9,30.119]
[1720763921057,4.46583066,135.94,135.9,30.119]
[1720763921250,34.62,135.95,135.9,30.119]
[1720763921458,4.4659508,135.94,135.9,30.119]
[1720763921752,34.62,135.95,135.9,30.119]
[1720763922054,4.46595244,135.94,135.9,30.119]
[1720763922265,34.62,135.95,135.9,30.119]
[1720763922446,4.4655745,135.94,135.9,30.119]
[1720763922635,14.62,135.94,135.9,15.499]
[1720763923039,41.9756,135.95,135.9,30.119]
[1720763923258,4.46539806,135.94,135.9,30.119]
[1720763923449,41.9756,135.95,135.9,30.119]
[1720763923648,4.46538221,135.94,135.9,30.119]
[1720763923867,41.9756,135.95,135.9,30.119]
[1720763924071,4.46501266,135.94,135.9,30.119]
[1720763924367,41.9756,135.95,135.9,30.119]
[1720763924570,4.46501352,135.94,135.9,30.119]
[1720763924753,41.9756,135.95,135.9,30.119]
[1720763924956,4.46519785,135.94,135.9,30.119]
[1720763925263,41.9756,135.95,135.9,30.119]
[1720763925446,4.46520163,135.94,135.9,30.119]
[1720763925647,34.62,135.95,135.9,30.119]
[1720763925865,4.4652025,135.94,135.9,30.119]
[1720763926170,34.62,135.95,135.9,30.119]
[1720763926347,4.46520163,135.94,135.9,30.119]
[1720763926548,34.62,135.95,135.9,30.119]
[1720763926757,4.4652025,135.94,135.9,30.119]
[1720763927077,34.62,135.95,135.9,30.119]
[1720763927247,4.46521053,135.94,135.9,30.119]
[1720763927449,34.62,135.95,135.9,30.119]
[1720763927651,4.46522647,135.94,135.9,30.119]
[1720763927971,34.62,135.95,135.9,30.119]
[1720763928266,4.46554311,135.94,135.9,30.119]
[1720763928472,34.62,135.95,135.9,30.119]
[1720763928773,4.46553376,135.94,135.9,30.119]
[1720763929072,34.62,135.95,135.9,30.119]
[1720763929361,4.46558006,135.94,135.9,30.119]
[1720763929573,20.0,135.95,135.9,30.119]
[1720763929750,4.46595783,135.94,135.9,30.119]
[1720763929949,20.0,135.96,135.92,14.62]
[1720763930154,4.46609657,135.95,135.92,14.62]
[1720763930449,2.87113636,135.98,135.9,15.499]
[1720763930450,14.62,136.0,135.94,14.62]
[1720763930704,14.62,136.0,135.95,14.62]
[1720763930705,16.48366688,135.99,135.95,14.62]
[1720763930868,4.46634013,135.98,135.95,14.62]
[1720763931165,4.46634013,136.0,135.96,14.62]
[1720763931361,16.48873707,135.99,135.96,14.62]
[1720763931558,17.9150741,136.02,135.96,14.62]
[1720763931767,31.11380429,136.01,135.96,14.62]
[1720763932069,36.49380429,136.0,135.96,14.62]
[1720763932272,4.46683307,135.99,135.96,14.62]
[1720763933241,27.353,136.0,135.95,16.0728]
[1720763933242,4.46710597,135.98,135.95,16.0728]
[1720763933446,41.973,136.0,135.95,30.6928]
[1720763933662,4.46711161,135.99,135.95,30.6928]
[1720763933871,4.46711161,135.98,135.95,16.0728]
[1720763934070,4.46711161,135.98,135.92,15.9404]
[1720763934071,4.46711161,135.97,135.92,15.9404]
[1720763934252,14.62,135.98,135.92,15.9404]
[1720763934462,4.46658029,135.97,135.93,14.62]
[1720763934665,14.62,135.98,135.93,14.62]
[1720763935085,14.62,135.99,135.93,14.62]
[1720763935265,4.46665651,135.98,135.93,14.62]
[1720763935586,14.62,135.99,135.93,14.62]
[1720763935773,4.4665052,135.98,135.93,14.62]
[1720763935966,19.0865052,135.98,135.93,14.62]
[1720763936167,4.4665052,135.97,135.93,14.62]
[1720763936671,14.62,135.99,135.93,14.62]
[1720763936887,4.4669402,135.98,135.93,14.62]
[1720763937084,14.62,135.99,135.93,14.62]
[1720763937393,4.46678481,135.98,135.93,14.62]
[1720763937567,4.46678481,135.97,135.93,14.62]
[1720763937766,14.62,135.98,135.92,30.5604]
[1720763937964,4.46675421,135.97,135.92,30.5604]
[1720763938201,14.62,135.98,135.92,30.5604]
[1720763938480,4.46637928,135.97,135.92,30.5604]
[1720763938786,14.62,135.98,135.92,30.5604]
[1720763938992,14.62,135.98,135.93,14.62]
[1720763939370,4.46620457,135.97,135.93,14.62]
[1720763939571,14.62,135.98,135.93,14.62]
[1720763939786,4.46620333,135.97,135.93,14.62]
[1720763940290,14.62,135.98,135.93,14.62]
[1720763940498,4.4661726,135.97,135.93,14.62]
[1720763940668,14.62,135.98,135.93,14.62]
[1720763940864,14.62,135.98,135.92,15.9404]
[1720763940865,4.46610458,135.97,135.92,15.9404]
[1720763941084,4.46610458,135.96,135.92,15.9404]
[1720763941284,34.62,135.97,135.92,15.9404]
[1720763941486,4.46582922,135.96,135.92,15.9404]
[1720763941796,34.62,135.97,135.92,15.9404]
[1720763942091,4.46597277,135.96,135.92,15.9404]
[1720763942269,34.62,135.97,135.92,15.9404]
[1720763942469,4.46605712,135.96,135.92,30.5604]
[1720763942793,34.62,135.97,135.92,15.9404]
[1720763943087,4.46531462,135.96,135.92,15.9404]
[1720763943287,20.0,135.97,135.92,30.5604]
[1720763943592,4.46557893,135.96,135.92,30.5604]
[1720763943780,20.0,135.96,135.92,30.5604]
[1720763943975,20.0,135.96,135.92,15.9404]
[1720763951418,20.0,135.96,135.92,30.5604]
[1720763952708,20.0,135.96,135.92,15.9404]
[1720763953014,20.0,135.96,135.92,30.5604]
[1720763953507,20.0,135.96,135.93,14.62]
[1720763953709,20.0,135.97,135.95,14.62]
[1720763953915,27.3517,136.03,135.95,14.62]
[1720763954211,20.0,135.99,135.96,14.62]
[1720763954791,20.0,136.0,135.96,14.62]
[1720763955111,41.9729,136.0,135.95,14.62]
[1720763955315,19.08615468,135.99,135.94,14.62]
[1720763955600,19.08615468,135.99,135.93,14.62]
[1720763955601,20.0,135.98,135.93,14.62]
[1720763956217,34.62,135.98,135.93,14.62]
[1720763956889,14.62,135.97,135.92,30.5604]
[1720763957712,34.62,135.98,135.93,14.62]
[1720763959018,34.62,135.98,135.92,30.5604]
[1720763959396,14.62,135.96,135.92,15.9404]
[1720763959595,20.0,135.95,135.92,15.9404]
[1720763960905,34.62,135.97,135.92,30.5604]
[1720763962919,21.973,136.0,135.95,14.62]
[1720763963118,4.46681634,135.99,135.95,14.62]
[1720763963302,14.62,136.0,135.95,14.62]
[1720763963907,21.9725,136.01,135.96,14.62]
[1720763964095,4.4667995,136.0,135.96,14.62]
[1720763964300,21.9725,136.01,135.96,14.62]
[1720763964502,24.46679968,136.0,135.95,14.62]
[1720763964720,7.3525,136.01,135.95,14.62]
[1720763964923,4.46680696,136.0,135.95,14.62]
[1720763965097,21.9725,136.01,135.95,14.62]
[1720763965298,4.46680783,136.0,135.95,14.62]
[1720763965497,21.9725,136.01,135.95,14.62]
[1720763965710,4.46680783,136.0,135.95,14.62]
[1720763965909,21.9725,136.01,135.95,14.62]
[1720763966115,24.46680783,136.0,135.96,14.62]
[1720763966416,20.0,136.0,135.96,14.62]
[1720763966621,20.0,136.01,135.97,14.62]
[1720763967119,20.0,136.02,135.97,14.62]
[1720763967298,41.9718,136.02,135.97,14.62]
[1720763969517,7.3524,136.01,135.97,14.62]
[1720763970017,20.0,136.0,135.97,16.6163]
[1720763970198,20.0,136.0,135.98,14.62]
[1720763970519,20.0,136.01,135.98,14.62]
[1720763971515,20.0,136.01,135.97,16.6163]
[1720763971695,20.0,136.01,135.97,31.2363]
[1720763973401,27.3524,136.01,135.97,31.2363]
[1720763973605,27.3526,136.01,135.97,31.2363]
[1720763974496,20.0,136.01,135.97,31.2363]
[1720763974698,27.3524,136.01,135.97,31.2363]
[1720763975628,20.0,136.01,135.97,31.2363]
[1720763976120,27.3525,136.01,135.97,31.2363]
[1720763976818,41.9725,136.01,135.97,16.6163]
[1720763977238,7.3532,136.0,135.97,16.6163]
[1720763978124,21.9732,136.0,135.97,16.6163]
[1720763978919,14.62,136.0,135.97,16.6163]
[1720763979428,41.9726,136.01,135.97,16.6163]
[1720763981721,34.62,136.01,135.97,16.6163]
[1720763982020,20.0,136.01,135.97,31.2363]
[1720763983815,41.9725,136.01,135.97,16.6163]
[1720763985527,14.62,136.0,135.97,16.6163]
[1720763985724,20.0,135.99,135.97,16.6163]
[1720763989328,20.0,136.0,135.97,16.6163]
[1720763990228,27.3524,136.01,135.97,16.6163]
[1720763990423,41.9724,136.01,135.97,16.6163]
[1720763991112,14.62,136.0,135.97,16.6163]
[1720763991306,20.0,135.99,135.95,14.62]
[1720763991535,41.9738,135.99,135.94,14.62]
[1720763991739,41.9738,135.99,135.93,20.9785]
[1720763991945,21.9749,135.97,135.92,15.8963]
[1720763992114,21.9749,135.97,135.92,30.5163]
[1720763992519,20.0,135.96,135.92,15.8963]
[1720763992923,34.62,135.96,135.92,15.8963]
[1720763994036,20.0,135.96,135.92,15.8963]
[1720763994341,14.62,135.96,135.92,15.8963]
[1720763997739,20.0,135.95,135.92,15.8963]
[1720763998927,20.0,135.96,135.92,15.8963]
[1720763999948,34.62,135.96,135.92,15.8963]
[1720764001015,20.0,135.96,135.92,15.8963]
[1720764001629,20.0,135.96,135.92,31.98732194]
[1720764001835,20.0,135.97,135.93,14.62]
[1720764002231,41.9745,135.97,135.92,15.8963]
[1720764002437,7.3551,135.96,135.92,15.8963]
[1720764002634,21.9751,135.96,135.92,15.8963]
[1720764002833,20.0,135.95,135.92,15.8963]
[1720764003022,20.0,135.95,135.92,30.5163]
[1720764003420,20.0,135.96,135.92,30.5163]
[1720764005249,27.3551,135.96,135.92,30.5163]
[1720764005559,41.9751,135.96,135.92,15.8963]
[1720764006025,21.9756,135.95,135.9,20.9785]
[1720764006232,20.0,135.94,135.9,6.3585]
[1720764006551,20.0,135.94,135.9,20.9785]
[1720764006925,20.0,135.95,135.9,20.9785]
[1720764007126,27.3556,135.95,135.9,20.9785]
[1720764007425,20.0,135.95,135.9,20.9785]
[1720764008147,34.62,135.95,135.9,14.62]
[1720764008528,34.62,135.95,135.87,6.0391]
[1720764008529,14.62,135.91,135.87,6.0391]
[1720764008722,7.3588,135.9,135.85,15.3226]
[1720764008945,7.3597,135.88,135.85,15.3226]
[1720764009151,40.5246,135.91,135.82,16.2512]
[1720764009344,14.62,135.85,135.82,16.2512]
[1720764009835,14.62,135.84,135.78,16.3363]
[1720764010031,14.62,135.83,135.78,16.3363]
[1720764010232,14.62,135.83,135.78,30.9563]
[1720764010652,14.62,135.83,135.78,16.3363]
[1720764010825,14.62,135.83,135.78,30.9563]
[1720764011029,14.62,135.84,135.79,14.62]
[1720764011236,14.62,135.83,135.78,30.9563]
[1720764011439,7.3618,135.84,135.78,16.3363]
[1720764011655,34.62,135.82,135.78,16.3363]
[1720764011838,14.62,135.8,135.75,14.62]
[1720764012441,14.62,135.8,135.74,16.3485]
[1720764012650,16.2253,135.86,135.77,14.62]
[1720764012941,14.62,135.83,135.78,14.62]
[1720764013148,20.0,135.82,135.78,14.62]
[1720764015548,14.62,135.8,135.74,16.3485]
[1720764015763,34.62,135.79,135.74,30.9685]
[1720764016142,20.0,135.79,135.74,30.9685]
[1720764016344,20.0,135.79,135.76,14.62]
[1720764016559,20.0,135.8,135.74,16.3485]
[1720764016843,15.06014567,135.83,135.74,16.3485]
[1720764017046,20.0,135.82,135.74,16.3485]
[1720764017342,7.69784567,135.83,135.74,45.5785]
[1720764017537,2.92417266,135.86,135.74,45.5785]
[1720764017538,7.3615,135.85,135.75,45.0]
[1720764017935,7.3615,135.85,135.76,0.97924891]
[1720764018163,7.3615,135.85,135.77,0.97917678]
[1720764018342,7.3618,135.84,135.77,0.97917678]
[1720764018659,7.3612,135.85,135.75,45.0]
[1720764018847,20.0,135.84,135.75,45.0]
[1720764019042,27.3616,135.84,135.75,45.0]
[1720764019243,7.3616,135.84,135.75,45.0]
[1720764019553,20.0,135.83,135.75,45.0]
[1720764020235,20.0,135.84,135.75,45.0]
[1720764021964,20.0,135.84,135.76,35.5092]
[1720764022166,20.0,135.86,135.77,45.0]
[1720764022941,27.3605,135.86,135.77,45.0]
[1720764023145,20.0,135.86,135.77,45.0]